bitfinex-derivatives/quotes_ETHF0:USTF0_20250701
["timestamp","ask_amount","ask_price","bid_price","bid_amount"]
[1751376094248,1.08062244,2439.5,2439.4,3.82690014]
[1751376094549,0.6887,2439.7,2439.6,0.81952]
[1751376094745,2.58733073,2439.7,2439.6,3.82684014]
[1751376095150,1.76785073,2439.7,2439.6,3.82684014]
[1751376096651,3.10225073,2439.7,2439.6,3.82684014]
[1751376098051,3.92173073,2439.7,2439.6,3.82684014]
[1751376098649,3.10225073,2439.7,2439.6,3.82684014]
[1751376099541,1.76785073,2439.7,2439.6,3.82684014]
[1751376102148,1.07915073,2439.7,2439.6,3.82684014]
[1751376102851,0.7133,2440.2,2440.1,0.81935]
[1751376103056,0.7133,2440.2,2440.1,3.82667014]
[1751376103451,2.0269,2440.2,2440.1,3.82667014]
[1751376106357,2.0269,2440.2,2440.1,0.81935]
[1751376107658,2.0269,2440.2,2440.1,3.82667014]
[1751376107957,0.6617,2440.3,2440.2,0.81931]
[1751376108559,2.0111,2440.3,2440.2,0.81931]
[1751376114865,3.06615253,2440.3,2440.2,0.81931]
[1751376117363,1.71675253,2440.3,2440.2,0.81931]
[1751376117966,3.07245253,2440.3,2440.2,0.81931]
[1751376125172,2.0174,2440.3,2440.2,0.81931]
[1751376125973,0.6943,2440.5,2440.1,5.05564014]
[1751376126173,0.6862,2440.7,2440.3,3.82660014]
[1751376126374,0.6862,2440.7,2440.6,0.81918]
[1751376126573,42.54092052,2440.7,2440.6,0.81918]
[1751376127774,43.88992109,2440.7,2440.6,0.81918]
[1751376134180,43.88992109,2440.7,2440.5,25.346]
[1751376134378,42.83520057,2440.7,2440.6,0.81918]
[1751376134577,43.88746697,2440.7,2440.6,0.81918]
[1751376135578,43.88746697,2440.7,2440.5,0.81919]
[1751376135773,42.83520057,2440.7,2440.6,0.81918]
[1751376135978,43.88730101,2440.7,2440.6,0.81918]
[1751376138084,43.88730101,2440.7,2440.6,25.78918]
[1751376139282,43.88730101,2440.7,2440.3,3.00732014]
[1751376139485,3.00732014,2440.6,2440.1,3.00732014]
[1751376139781,42.83520057,2440.7,2440.0,5.05578014]
[1751376139987,0.81919,2440.6,2440.5,0.81921]
[1751376140282,42.83520057,2440.7,2440.6,0.81918]
[1751376140486,43.88686572,2440.7,2440.6,3.82650014]
[1751376140681,44.70601572,2440.7,2440.6,3.82650014]
[1751376140888,43.88686572,2440.7,2440.6,3.82650014]
[1751376141487,43.88686572,2440.7,2440.6,0.81918]
[1751376141987,43.88686572,2440.7,2440.6,3.82650014]
[1751376142189,42.83520057,2440.7,2440.6,3.82650014]
[1751376142885,42.83520057,2440.7,2440.6,0.81918]
[1751376147990,2.04706,2441.7,2440.6,5.0]
[1751376148291,0.6973,2441.2,2441.1,3.82633014]
[1751376148494,42.51484482,2441.2,2441.1,28.78833014]
[1751376148686,43.89094482,2441.2,2441.1,28.78833014]
[1751376149092,43.89094482,2441.2,2441.1,3.82633014]
[1751376149292,43.89094482,2441.2,2441.1,24.77037246]
[1751376149293,45.29459872,2441.2,2441.1,24.77037246]
[1751376150089,46.11357872,2441.2,2441.1,24.77037246]
[1751376150294,46.11357872,2441.2,2441.0,25.77903]
[1751376150491,2.46274482,2441.1,2441.0,25.77903]
[1751376151491,3.28175482,2441.1,2440.9,0.81906]
[1751376151697,2.26426,2441.0,2440.8,3.00732014]
[1751376151995,1.4452,2440.9,2440.8,3.82643014]
[1751376152186,2.1374,2440.9,2440.8,3.82643014]
[1751376152591,2.1374,2440.9,2440.8,28.78543014]
[1751376153294,0.6922,2440.9,2440.8,28.78543014]
[1751376153590,43.6248539,2441.2,2441.1,0.81901]
[1751376153790,45.30758381,2441.2,2441.1,3.82633014]
[1751376154001,44.2892539,2441.2,2441.1,3.82633014]
[1751376154494,1.4036539,2441.2,2441.1,3.82633014]
[1751376154694,0.672,2441.3,2441.2,0.81898]
[1751376154902,0.81877,2441.9,2441.6,0.81884]
[1751376155092,30.23507608,2442.3,2441.2,39.56932014]
[1751376155093,0.81889,2441.5,2441.4,2.18848014]
[1751376155295,0.81881,2441.7,2441.4,25.36473161]
[1751376155498,41.61886,2441.6,2441.4,25.36473161]
[1751376155696,41.61886,2441.6,2441.3,0.81892]
[1751376155697,1.4212,2441.5,2441.3,0.81892]
[1751376155897,2.0856,2441.5,2441.4,24.955]
[1751376156199,2.0856,2441.5,2441.4,24.954]
[1751376156794,2.90448,2441.5,2441.4,24.954]
[1751376157399,2.90448,2441.5,2440.7,5.90992628]
[1751376157400,2.0856,2441.5,2440.7,5.90992628]
[1751376157596,2.0856,2441.5,2441.0,0.81901]
[1751376157597,1.3874,2441.4,2441.0,0.81901]
[1751376157792,0.7212,2441.3,2441.0,0.81901]
[1751376158002,2.20639,2441.2,2441.1,24.953]
[1751376158300,0.7233,2441.2,2441.1,28.77933014]
[1751376158996,0.7233,2441.2,2441.1,3.82633014]
[1751376159201,1.3874,2441.4,2441.3,0.81895]
[1751376159401,1.3874,2441.4,2441.3,3.82627014]
[1751376159603,1.3874,2441.4,2441.3,3.00732014]
[1751376159799,0.6682,2441.5,2441.4,0.81891]
[1751376160701,40.8,2441.6,2441.5,0.81888]
[1751376160999,41.4682,2441.6,2441.5,27.95832014]
[1751376161298,41.4682,2441.6,2441.5,28.77720014]
[1751376161498,42.8398,2441.6,2441.5,27.95832014]
[1751376162401,42.8398,2441.6,2441.5,28.77720014]
[1751376163505,43.65864,2441.6,2441.5,27.95832014]
[1751376163803,42.8398,2441.6,2441.5,27.95832014]
[1751376164097,42.8398,2441.6,2441.5,28.77720014]
[1751376164301,42.8398,2441.6,2441.5,27.95832014]
[1751376164699,42.8398,2441.6,2441.5,28.77720014]
[1751376164893,42.8398,2441.6,2441.5,27.95832014]
[1751376165597,43.65864,2441.6,2441.5,24.951]
[1751376165806,43.65864,2441.6,2441.5,3.00732014]
[1751376166001,43.65864,2441.6,2441.5,24.946]
[1751376166597,43.65864,2441.6,2441.3,3.00732014]
[1751376166801,1.3566,2441.5,2441.4,37.3599]
[1751376167098,2.17548,2441.5,2441.4,24.946]
[1751376168105,2.17548,2441.5,2441.3,11.595]
[1751376168306,1.4493,2441.4,2441.3,11.595]
[1751376168506,1.4493,2441.4,2441.3,36.539]
[1751376168903,1.4493,2441.4,2441.3,37.35795]
[1751376171208,0.81897,2441.3,2441.0,0.81902]
[1751376171411,0.6896,2441.2,2441.1,37.35601]
[1751376171617,2.1223,2441.2,2441.1,37.35601]
[1751376172106,2.1223,2441.2,2440.8,0.81911]
[1751376172305,1.4327,2441.1,2440.9,24.942]
[1751376172609,0.81906,2441.0,2440.9,24.942]
[1751376173001,0.81917,2440.7,2440.1,61.03337]
[1751376173199,1.35,2440.6,2440.3,27.94932014]
[1751376173406,2.7827,2440.6,2440.5,3.00732014]
[1751376173804,0.81924,2440.5,2440.3,3.00732014]
[1751376174004,1.4327,2440.4,2440.3,3.00732014]
[1751376174307,1.4327,2440.4,2440.3,24.943]
[1751376174608,43.05197,2440.4,2440.3,24.943]
[1751376175412,43.05197,2440.4,2440.3,24.942]
[1751376175613,44.42364008,2440.4,2440.3,27.94932014]
[1751376176314,43.60437008,2440.4,2440.3,27.94932014]
[1751376177118,43.60437008,2440.4,2440.3,24.942]
[1751376177415,43.60437008,2440.4,2440.3,28.76860014]
[1751376177616,43.60437008,2440.4,2440.3,27.94932014]
[1751376177813,43.60437008,2440.4,2440.3,27.95132014]
[1751376179818,43.60437008,2440.4,2440.3,28.77060014]
[1751376181312,43.60437008,2440.4,2440.3,25.76328]
[1751376181313,42.17167008,2440.4,2440.3,25.76328]
[1751376181522,42.17167008,2440.4,2440.3,28.77060014]
[1751376181713,40.8,2440.4,2440.3,28.77060014]
[1751376182016,1.35,2440.6,2440.5,0.81921]
[1751376182217,1.3487,2440.8,2440.7,0.81915]
[1751376182425,42.1487,2440.8,2440.7,3.82647014]
[1751376183107,40.8,2440.8,2440.7,3.82647014]
[1751376183919,2.30533519,2440.9,2440.8,0.81911]
[1751376184217,2.30533519,2440.9,2440.8,25.76511]
[1751376184811,3.63683519,2440.9,2440.8,25.76511]
[1751376185012,3.63683519,2440.9,2440.8,25.76411]
[1751376186018,3.63683519,2440.9,2440.8,24.945]
[1751376186219,3.63683519,2440.9,2440.8,25.76411]
[1751376186518,3.63683519,2440.9,2440.8,24.945]
[1751376186821,3.63683519,2440.9,2440.8,25.76411]
[1751376187019,3.63683519,2440.9,2440.8,24.945]
[1751376188119,3.63683519,2440.9,2440.8,25.76411]
[1751376189022,3.63683519,2440.9,2440.8,24.945]
[1751376189215,3.63683519,2440.9,2440.8,25.76411]
[1751376189717,3.63683519,2440.9,2440.8,25.76211]
[1751376191318,4.45591519,2440.9,2440.7,3.82644014]
[1751376191519,1.4156,2440.8,2440.7,3.82647014]
[1751376191721,1.4156,2440.8,2440.7,28.76847014]
[1751376192622,1.4156,2440.8,2440.7,27.94932014]
[1751376193325,1.4156,2440.8,2440.7,28.76847014]
[1751376193823,1.4156,2440.8,2440.5,3.00732014]
[1751376194127,1.4156,2440.8,2440.6,25.76016]
[1751376194128,2.23472,2440.8,2440.6,25.76016]
[1751376194327,2.23472,2440.8,2440.7,24.941]
[1751376194624,41.61912,2440.8,2440.7,24.941]
[1751376195522,0.81915,2440.7,2440.6,0.81918]
[1751376195724,41.61914,2440.8,2440.6,25.76018]
[1751376195924,41.61914,2440.8,2440.6,0.81918]
[1751376196126,41.61914,2440.8,2440.7,24.941]
[1751376196431,41.61914,2440.8,2440.6,0.81918]
[1751376196726,41.61914,2440.8,2440.6,25.76018]
[1751376197030,0.81915,2440.7,2440.6,24.941]
[1751376197433,0.81915,2440.7,2440.5,0.81919]
[1751376197639,1.48549,2440.6,2440.4,0.81923]
[1751376197840,1.48549,2440.6,2440.5,24.941]
[1751376198034,0.81921,2440.5,2440.3,12.41226]
[1751376198340,0.81921,2440.5,2440.3,0.81926]
[1751376198639,1.4855,2440.6,2440.4,25.76025]
[1751376200038,0.81921,2440.5,2440.4,0.81925]
[1751376200238,0.81921,2440.5,2440.4,24.94]
[1751376200439,0.81921,2440.5,2440.4,25.75925]
[1751376200638,0.81921,2440.5,2440.4,24.94]
[1751376201040,0.81925,2440.4,2440.3,0.81926]
[1751376201238,0.81924,2440.5,2440.3,25.76026]
[1751376201438,0.81924,2440.5,2440.4,0.81925]
[1751376202144,1.4855,2440.6,2440.4,0.81925]
[1751376202343,1.4855,2440.6,2440.5,0.81921]
[1751376202742,0.6663,2440.6,2440.5,0.81921]
[1751376203442,1.62353519,2440.9,2440.5,0.81921]
[1751376203443,1.62353519,2440.9,2440.8,0.81911]
[1751376203635,1.51304,2441.1,2440.8,25.75911]
[1751376203836,3.18056713,2441.1,2441.0,3.00732014]
[1751376204037,4.2033936,2441.1,2441.0,3.00732014]
[1751376204343,45.0033936,2441.1,2441.0,3.00732014]
[1751376204642,0.81905,2441.0,2440.8,28.76641014]
[1751376204934,43.98055713,2441.1,2440.9,0.81908]
[1751376205141,1.84060381,2441.0,2440.8,28.76641014]
[1751376205331,0.81905,2441.0,2440.8,28.76641014]
[1751376205836,43.98056713,2441.1,2440.8,28.76641014]
[1751376206038,1.84064344,2441.0,2440.8,28.76641014]
[1751376206242,0.81905,2441.0,2440.8,28.76641014]
[1751376206642,1.3444,2440.9,2440.8,28.76641014]
[1751376207442,1.3444,2440.9,2440.8,27.94732014]
[1751376207636,1.3444,2440.9,2440.8,28.76643014]
[1751376208537,1.3444,2440.9,2440.8,27.94732014]
[1751376208742,2.16348,2440.9,2440.8,27.94732014]
[1751376209039,1.3444,2440.9,2440.8,27.94732014]
[1751376209341,1.3444,2440.9,2440.8,28.76643014]
[1751376209740,43.16152713,2441.1,2440.8,28.76643014]
[1751376209945,1.66752713,2441.1,2441.0,3.82637014]
[1751376210147,1.4229,2441.4,2441.2,0.81895]
[1751376210344,1.4229,2441.4,2441.3,25.75595]
[1751376210545,3.10835369,2441.4,2441.3,25.75595]
[1751376211041,43.90835369,2441.4,2441.3,24.937]
[1751376211246,43.90835369,2441.4,2441.3,25.75595]
[1751376212146,44.72726369,2441.4,2441.3,24.937]
[1751376212348,45.53443387,2441.4,2440.8,0.81911]
[1751376212549,3.00732014,2441.1,2441.0,0.81905]
[1751376213349,2.048,2441.2,2441.1,0.81901]
[1751376213549,0.6993,2441.2,2441.1,0.81901]
[1751376221247,43.09028018,2441.4,2441.3,0.81895]
[1751376223357,42.42608018,2441.4,2441.3,0.81895]
[1751376223558,1.62608018,2441.4,2441.3,0.81895]
[1751376223758,0.693,2441.7,2441.6,0.81884]
[1751376223955,1.71215688,2441.7,2441.6,0.81884]
[1751376224255,42.51215688,2441.7,2441.6,0.81884]
[1751376224559,41.493,2441.7,2441.6,0.81884]
[1751376224854,43.12415861,2441.7,2441.6,0.81884]
[1751376225057,43.12415861,2441.7,2441.3,2.04737]
[1751376225257,43.94296861,2441.7,2441.5,0.81886]
[1751376225457,43.94297861,2441.7,2441.2,5.05472014]
[1751376225756,43.12415861,2441.7,2441.6,0.81884]
[1751376225956,43.12415861,2441.7,2441.5,0.81885]
[1751376226554,43.94296861,2441.7,2441.5,0.81885]
[1751376226753,1.4148,2441.6,2441.4,0.81889]
[1751376226954,2.23367,2441.6,2441.4,0.81891]
[1751376227153,4.42212014,2441.6,2441.5,0.81888]
[1751376227360,3.82617014,2441.6,2441.4,0.81889]
[1751376227554,3.00732014,2441.6,2441.1,11.586]
[1751376227855,0.81902,2441.1,2440.9,0.81906]
[1751376228055,4.36812014,2441.0,2440.9,0.81906]
[1751376228262,1.3608,2441.0,2440.9,0.81906]
[1751376231465,1.3608,2441.0,2440.9,25.74506]
[1751376232560,1.3608,2441.0,2440.9,24.926]
[1751376232759,1.3608,2441.0,2440.8,25.7451]
[1751376233260,2.17987,2441.0,2440.7,0.81912]
[1751376233466,5.18719014,2441.0,2440.8,0.81911]
[1751376233961,4.36812014,2441.0,2440.9,0.81908]
[1751376234357,1.3608,2441.0,2440.9,0.81908]
[1751376234768,1.3608,2441.0,2440.9,0.42088]
[1751376234965,2.39211747,2441.0,2440.9,0.42088]
[1751376235267,2.39211556,2441.0,2440.9,0.42088]
[1751376235869,1.3608,2441.0,2440.9,0.42088]
[1751376236070,2.39211556,2441.0,2440.9,0.42088]
[1751376236968,1.3608,2441.0,2440.9,0.42088]
[1751376237468,1.3608,2441.0,2440.8,0.81909]
[1751376238163,4.36812014,2441.0,2440.7,24.926]
[1751376238364,3.82645014,2440.8,2440.6,0.81917]
[1751376238667,0.81918,2440.7,2440.5,25.7452]
[1751376238864,0.7183,2440.7,2440.6,0.81918]
[1751376239962,0.8194,2440.0,2439.8,3.50466181]
[1751376240166,1.4375,2439.9,2439.4,5.01825883]
[1751376240357,3.00732014,2439.8,2439.0,25.679]
[1751376240564,40.8,2439.7,2439.3,3.00732014]
[1751376240863,40.8,2439.7,2439.6,0.81952]
[1751376241070,40.8,2439.7,2439.5,3.00732014]
[1751376241071,1.4375,2439.9,2439.5,3.00732014]
[1751376241270,1.4375,2439.9,2439.8,3.00732014]
[1751376241470,1.4375,2439.9,2439.8,3.82677014]
[1751376241669,40.8,2439.9,2439.8,3.82677014]
[1751376241869,0.6725,2440.2,2439.9,0.81939]
[1751376242071,2.31249589,2440.2,2440.0,0.81938]
[1751376242264,2.31249589,2440.2,2440.1,0.81935]
[1751376242565,0.81921,2440.5,2440.1,25.90835]
[1751376242871,40.8,2440.4,2440.2,0.81931]
[1751376243071,40.8,2440.4,2440.3,0.81928]
[1751376243268,0.7062,2440.5,2440.4,0.81925]
[1751376244069,0.6725,2440.6,2440.4,3.82655014]
[1751376244970,2.30020207,2440.6,2440.3,0.81926]
[1751376245170,0.6725,2440.6,2440.3,0.81926]
[1751376245370,0.6725,2440.6,2440.4,3.00732014]
[1751376245570,0.6725,2440.6,2440.5,0.81921]
[1751376245772,0.6725,2440.6,2440.4,3.82655014]
[1751376245975,2.3423289,2440.6,2440.2,3.00732014]
[1751376246276,2.3423289,2440.6,2440.3,25.084]
[1751376246277,1.49171,2440.6,2440.3,25.084]
[1751376246475,1.49171,2440.6,2440.3,25.082]
[1751376246675,1.3485,2440.5,2440.3,25.082]
[1751376246974,4.35582014,2440.5,2440.1,1.35292]
[1751376247171,0.6622,2440.4,2440.1,0.81932]
[1751376247375,1.3352,2440.3,2440.2,0.81931]
[1751376248468,1.3352,2440.3,2440.1,25.89733]
[1751376248673,1.3352,2440.3,2440.2,0.81931]
[1751376249668,2.2846299,2440.6,2440.2,3.00732014]
[1751376249881,2.9468299,2440.6,2440.5,0.81921]
[1751376250579,4.3039299,2440.6,2440.5,0.81921]
[1751376253672,40.8,2440.7,2440.6,0.81918]
[1751376254674,42.157,2440.7,2440.6,0.81918]
[1751376256580,40.8,2440.7,2440.6,0.81918]
[1751376258085,2.28182322,2440.8,2440.7,0.81915]
[1751376258289,3.35272743,2440.8,2440.7,0.81915]
[1751376258483,44.15272743,2440.8,2440.7,0.81915]
[1751376258681,2.04713,2441.6,2440.7,2.04787]
[1751376258886,0.6775,2441.3,2441.2,0.81897]
[1751376259085,42.54848119,2441.3,2441.2,0.81897]
[1751376259387,44.20930938,2441.3,2441.2,0.81897]
[1751376259786,44.20930938,2441.3,2441.1,0.81899]
[1751376259986,2.38648119,2441.2,2441.1,0.81899]
[1751376261593,5.39380133,2441.2,2440.7,2.04787]
[1751376261789,2.38648119,2441.1,2440.7,0.81912]
[1751376262090,6.09330133,2441.0,2440.8,0.8191]
[1751376262387,2.38648119,2440.9,2440.8,0.8191]
[1751376262888,1.3155,2440.9,2440.8,0.8191]
[1751376264888,1.3155,2440.9,2440.8,0.81911]
[1751376266388,2.13458,2440.9,2440.7,0.81914]
[1751376266594,0.81913,2440.8,2440.5,25.83419]
[1751376266796,2.14293,2440.8,2440.5,25.83419]
[1751376266998,0.6659,2440.7,2440.5,25.83419]
[1751376267189,1.9897,2440.7,2440.5,25.83419]
[1751376267493,0.9897,2440.7,2440.6,0.81918]
[1751376267689,0.8191,2440.9,2440.5,25.015]
[1751376267890,4.52589014,2441.0,2440.7,0.81915]
[1751376268095,0.81909,2440.9,2440.7,0.81915]
[1751376268290,0.81909,2440.9,2440.7,0.81914]
[1751376268499,3.70682014,2441.0,2440.7,0.81914]
[1751376268800,0.81908,2440.9,2440.7,0.81914]
[1751376269398,4.52589014,2441.0,2440.7,0.81914]
[1751376269699,1.1095093,2440.9,2440.7,0.81914]
[1751376269897,0.81908,2440.9,2440.7,0.81914]
[1751376270597,0.7013,2440.8,2440.7,0.81914]
[1751376270798,2.1168,2440.8,2440.7,0.81914]
[1751376271400,3.2264671,2440.8,2440.7,0.81914]
[1751376271594,2.1168,2440.8,2440.7,0.81914]
[1751376272602,3.22671242,2440.8,2440.6,0.81917]
[1751376272803,1.3377,2440.7,2440.6,0.81917]
[1751376274603,1.3377,2440.7,2440.5,24.992]
[1751376274604,1.3377,2440.7,2440.1,5.05567014]
[1751376274799,0.81925,2440.4,2439.9,0.00011238]
[1751376275099,3.00732014,2440.1,2439.9,0.00011238]
[1751376275294,1.4396,2440.0,2439.9,0.00011238]
[1751376276009,2.25898,2440.0,2439.9,0.00011238]
[1751376277007,3.36876402,2440.0,2439.9,0.00011238]
[1751376277512,9.59789402,2440.0,2439.3,12.46959]
[1751376277808,3.00732014,2439.7,2439.3,12.46959]
[1751376278008,2.0353,2439.6,2439.1,0.7266]
[1751376278209,2.85484,2439.6,2439.3,0.81961]
[1751376279209,2.85484,2439.6,2439.2,0.81963]
[1751376279409,2.85484,2439.6,2439.3,0.81961]
[1751376279709,2.0353,2439.6,2439.3,0.81961]
[1751376280111,2.85484,2439.6,2439.1,25.7076]
[1751376280410,2.85483,2439.6,2439.1,25.7076]
[1751376280610,0.81959,2439.4,2439.1,0.81966]
[1751376280804,1.4136,2439.3,2439.2,0.81965]
[1751376281210,1.4136,2439.3,2439.1,0.81968]
[1751376281410,1.4136,2439.3,2439.0,27.98632014]
[1751376281599,3.02604046,2439.3,2439.2,0.81965]
[1751376282006,3.02604046,2439.3,2439.0,3.00732014]
[1751376282311,3.02604046,2439.3,2439.0,27.98732014]
[1751376282513,3.84566046,2439.3,2439.0,28.80702014]
[1751376282806,3.84566046,2439.3,2439.0,0.81971]
[1751376282999,3.84566046,2439.3,2439.0,24.978]
[1751376283206,6.8530006,2439.3,2439.0,24.977]
[1751376283506,0.81965,2439.2,2438.9,25.79672]
[1751376283809,2.23325,2439.2,2438.9,0.81974]
[1751376284110,1.4136,2439.2,2439.0,0.81971]
[1751376284609,1.4136,2439.2,2438.8,36.59005]
[1751376284610,1.4136,2439.2,2439.1,0.81968]
[1751376285312,1.4136,2439.2,2438.9,3.00732014]
[1751376285313,2.23325,2439.2,2438.9,0.81973]
[1751376285515,1.4136,2439.2,2439.0,0.81971]
[1751376285716,1.4136,2439.2,2439.1,0.81968]
[1751376285914,1.4136,2439.2,2439.0,0.81969]
[1751376286716,1.4136,2439.2,2439.0,0.8197]
[1751376287014,2.23326,2439.2,2438.9,0.81972]
[1751376287314,2.23326,2439.2,2438.8,36.59005]
[1751376287514,0.6916,2439.1,2439.0,0.81972]
[1751376287715,2.1023,2439.1,2439.0,0.81972]
[1751376292114,2.1023,2439.1,2438.9,0.81972]
[1751376292315,2.1023,2439.1,2439.0,0.81972]
[1751376293216,2.1023,2439.1,2438.9,0.81973]
[1751376293416,5.10962014,2439.1,2438.9,0.81973]
[1751376293717,2.0839,2439.0,2438.8,5e-05]
[1751376293918,2.0839,2439.0,2438.9,0.81975]
[1751376294416,2.90363,2439.0,2438.8,0.81981]
[1751376294618,5.25317014,2438.9,2438.8,5e-05]
[1751376295215,4.43342014,2438.9,2438.8,5e-05]
[1751376295522,4.43342014,2438.9,2438.8,0.81983]
[1751376296021,1.47753,2439.0,2438.9,0.81975]
[1751376296022,0.6578,2439.0,2438.9,0.81975]
[1751376296218,0.6578,2439.0,2438.8,0.81982]
[1751376296621,2.80712,2439.0,2438.8,0.81982]
[1751376297321,2.80712,2439.0,2438.8,5e-05]
[1751376297516,1.3296,2438.9,2438.8,5e-05]
[1751376298010,0.6578,2439.0,2438.8,5e-05]
[1751376298211,1.47755,2439.0,2438.8,5e-05]
[1751376298415,3.82707014,2438.9,2438.8,5e-05]
[1751376298613,1.9874,2439.0,2438.8,5e-05]
[1751376298810,0.6578,2439.0,2438.9,3.82707014]
[1751376299009,1.61244046,2439.3,2439.2,0.81965]
[1751376299214,1.3296,2439.6,2439.5,0.81955]
[1751376299413,1.09677873,2439.6,2439.5,0.81955]
[1751376299613,5.82832014,2440.2,2439.6,2.0488]
[1751376299815,5.82832014,2440.2,2440.0,0.81938]
[1751376299816,1.09690833,2440.1,2440.0,0.81938]
[1751376300218,0.7048,2440.2,2439.7,5.05601014]
[1751376300418,0.7048,2440.2,2439.8,1.3415]
[1751376300619,0.7048,2440.2,2440.0,0.81936]
[1751376300918,3.00732014,2440.1,2440.0,0.81936]
[1751376301521,3.00732014,2440.1,2439.8,1.3415]
[1751376301522,2.3344612,2440.2,2440.1,0.81935]
[1751376301727,3.00732014,2440.8,2440.1,16.67170014]
[1751376302023,3.00732014,2440.3,2440.2,27.49281]
[1751376303217,3.00732014,2440.3,2440.2,28.79311]
[1751376303818,2.82263211,2440.8,2440.7,0.81915]
[1751376304020,8.59936847,2440.8,2440.6,0.81917]
[1751376304222,8.59936847,2440.8,2440.6,0.81916]
[1751376305023,8.59936847,2440.8,2440.5,0.8192]
[1751376306025,8.59936847,2440.8,2440.4,0.81923]
[1751376306223,5.77673636,2440.5,2440.4,0.81923]
[1751376307423,5.77673636,2440.5,2440.3,0.81925]
[1751376307621,5.77673636,2440.5,2440.0,0.5879]
[1751376307820,5.77673636,2440.1,2440.0,0.81938]
[1751376310226,0.7032,2440.3,2440.2,0.81931]
[1751376310426,5.77673636,2440.6,2440.5,0.81921]
[1751376312029,5.77673636,2440.6,2440.4,0.81922]
[1751376312225,7.10503636,2440.6,2440.4,0.81922]
[1751376312426,7.10503636,2440.6,2440.5,0.81921]
[1751376313623,5.77673636,2440.6,2440.5,0.81921]
[1751376318827,7.85343636,2440.6,2440.4,0.81922]
[1751376319034,7.85343636,2440.6,2440.3,25.23]
[1751376319035,7.85343636,2440.6,2440.3,0.81926]
[1751376319334,7.85343636,2440.6,2440.0,2.04843]
[1751376319335,8.67263636,2440.6,2440.0,2.04843]
[1751376319526,8.67263636,2440.6,2440.1,0.81935]
[1751376319527,5.77673636,2440.2,2440.1,0.81935]
[1751376320329,7.17363636,2440.4,2440.0,0.81936]
[1751376320534,5.77673636,2440.1,2440.0,0.81936]
[1751376320735,5.77673636,2440.3,2440.0,0.81936]
[1751376321035,5.77673636,2440.3,2440.2,0.81931]
[1751376323229,5.77673636,2440.3,2440.1,0.81933]
[1751376323436,5.77673636,2440.3,2440.1,0.81935]
[1751376323437,2.0809,2440.2,2440.1,0.81935]
[1751376323933,2.0809,2440.2,2440.0,0.81937]
[1751376324133,1.3892,2440.1,2439.9,0.81939]
[1751376324333,5.77673636,2440.0,2439.9,0.81939]
[1751376325537,0.7232,2440.1,2440.0,0.81938]
[1751376326327,0.6917,2440.2,2440.1,0.81935]
[1751376326833,7.16593636,2440.4,2440.3,0.81928]
[1751376329225,8.27638523,2440.4,2440.3,0.81928]
[1751376330936,7.16593636,2440.4,2440.3,0.81928]
[1751376331538,8.27674797,2440.4,2440.3,0.81928]
[1751376333637,1.11081161,2440.4,2440.3,0.81928]
[1751376333838,3.00855853,2440.5,2440.4,0.81925]
[1751376334037,4.11969308,2440.5,2440.4,0.81925]
[1751376334436,1.11113455,2440.5,2440.4,0.81925]
[1751376334937,3.71325853,2440.6,2440.5,0.81921]
[1751376335135,6.14876457,2440.6,2440.5,0.81921]
[1751376336539,5.03925853,2440.6,2440.5,0.81921]
[1751376336741,6.14891274,2440.6,2440.5,0.81921]
[1751376337438,5.03925853,2440.6,2440.5,0.81921]
[1751376339742,6.14914158,2440.6,2440.5,0.81921]
[1751376339943,6.14914463,2440.6,2440.2,2.04828]
[1751376340234,3.00855853,2440.4,2439.9,2.74817]
[1751376340444,3.00855853,2440.0,2439.9,38.39012]
[1751376340837,2.00855853,2440.0,2439.9,38.39012]
[1751376341144,1.00855853,2440.0,2439.9,38.39012]
[1751376342338,1.00855853,2440.0,2439.9,37.68642]
[1751376342541,1.00855853,2440.0,2439.9,37.68142]
[1751376343735,3.70965853,2440.2,2440.1,0.81935]
[1751376346238,3.00855853,2440.5,2439.9,43.96757853]
[1751376346445,3.00855853,2440.5,2440.4,0.81925]
[1751376346746,4.11903387,2440.5,2440.4,0.81925]
[1751376347135,0.7047,2440.6,2440.5,0.81921]
[1751376347346,3.68795853,2440.7,2440.6,0.81918]
[1751376347545,4.79878638,2440.7,2440.6,0.81918]
[1751376348144,6.19818638,2440.7,2440.5,0.81919]
[1751376348342,5.51878638,2440.6,2440.5,0.81919]
[1751376349046,4.11938638,2440.6,2440.5,0.81919]
[1751376349244,3.00855853,2440.6,2440.5,0.81919]
[1751376350254,40.8,2441.0,2440.5,0.81919]
[1751376350255,3.00855853,2441.1,2440.8,2.04771]
[1751376350455,1.110784,2441.0,2440.8,25.086]
[1751376350654,1.110784,2440.9,2440.8,25.90511]
[1751376351247,4.35258605,2441.0,2440.9,0.81908]
[1751376351446,5.45672031,2441.0,2440.9,0.81908]
[1751376352356,4.35258605,2441.0,2440.9,0.81908]
[1751376357060,1.3403,2441.3,2441.2,0.81898]
[1751376357856,1.3403,2441.3,2441.2,0.41898]
[1751376358459,2.68867667,2441.3,2441.2,0.41898]
[1751376358755,5.6972352,2441.3,2441.2,0.41898]
[1751376359867,2.68867667,2441.3,2441.2,0.41898]
[1751376360067,5.6972352,2441.3,2441.2,0.41898]
[1751376360264,5.6972352,2441.3,2440.9,0.81908]
[1751376360465,3.00855853,2441.0,2440.8,27.08679]
[1751376360660,3.00855853,2441.0,2440.9,0.81908]
[1751376360859,3.00855853,2441.0,2440.8,0.81909]
[1751376361060,2.0812,2440.9,2440.8,25.85711]
[1751376365364,3.00855853,2441.2,2441.1,0.81901]
[1751376365566,3.72805853,2441.2,2441.1,0.81901]
[1751376365766,5.12555853,2441.2,2441.1,0.81901]
[1751376366470,5.12555853,2441.2,2440.8,27.08577]
[1751376366667,4.43655853,2441.1,2441.0,0.81905]
[1751376367773,0.7195,2441.2,2441.1,0.81901]
[1751376368372,2.1475,2441.2,2441.1,0.81901]
[1751376370171,0.7195,2441.2,2441.1,0.81901]